bitfinex/quotes_ETHUSD_20241217
["timestamp","ask_amount","ask_price","bid_price","bid_amount"]
[1734418487419,2.14502872,4003.8,4003.0,1.79824964]
[1734418487713,0.85801149,4003.7,4003.0,3.75204769]
[1734418487871,1.03790362,4003.9,4003.0,5.19549465]
[1734418488071,1.03790362,4004.1,4003.2,4.80250195]
[1734418488272,1.03790362,4004.2,4003.3,3.39724501]
[1734418488537,1.55701821,4004.3,4003.4,0.7563]
[1734418488538,0.85801732,4004.1,4003.4,0.7563]
[1734418488848,1.03790362,4004.3,4003.4,1.15354501]
[1734418488998,1.03790362,4004.3,4003.4,4.15354501]
[1734418488999,2.14504032,4004.2,4003.4,4.15354501]
[1734418489200,0.85801613,4004.2,4003.5,0.55621809]
[1734418489540,2.11469789,4004.1,4003.4,1.15354501]
[1734418489743,0.85790523,4004.0,4003.4,1.15354501]
[1734418490498,2.11469789,4004.1,4003.4,1.15354501]
[1734418490798,1.07679427,4004.1,4003.4,1.15354501]
[1734418492958,0.2137,4003.9,4003.2,3.0]
[1734418493116,0.2137,4003.9,4003.2,0.75973759]
[1734418493540,0.85802238,4003.8,4003.2,0.75973759]
[1734418493725,0.2137,4003.9,4003.2,0.75973759]
[1734418493923,0.85805194,4003.8,4003.2,0.75973759]
[1734418494125,0.2137,4003.9,4003.2,0.75973759]
[1734418494351,0.85807326,4003.8,4003.2,0.75973759]
[1734418494667,0.2137,4003.9,4003.2,0.75973759]
[1734418495422,0.85807724,4003.8,4003.2,0.75973759]
[1734418495705,0.2137,4003.9,4003.2,0.75973759]
[1734418495904,0.85821309,4003.8,4003.2,0.75973759]
[1734418496167,0.2137,4003.9,4003.2,0.75973759]
[1734418496308,1.93505941,4003.8,4003.1,0.7563]
[1734418496514,1.07679427,4003.8,4003.1,0.7563]
[1734418498103,1.07679427,4003.8,4003.3,0.1216996]
[1734418499760,0.2137,4003.9,4003.3,0.1216996]
[1734418499973,1.03751242,4004.1,4003.3,0.51894461]
[1734418500176,0.8585805,4004.0,4003.4,0.39724501]
[1734418500316,1.03751242,4004.1,4003.5,0.7962]
[1734418500674,0.85860109,4004.0,4003.5,0.7962]
[1734418500851,2.11430669,4004.2,4003.5,0.7962]
[1734418501018,1.03751242,4004.3,4003.6,0.39724501]
[1734418501353,2.14653649,4004.2,4003.6,0.39724501]
[1734418501654,1.03751242,4004.4,4003.6,0.62123101]
[1734418501813,0.85866497,4004.3,4003.6,0.62123101]
[1734418502013,1.03751242,4004.4,4003.6,0.62123101]
[1734418502215,0.85867456,4004.3,4003.6,0.62123101]
[1734418502429,2.32800669,4004.5,4003.6,0.62123101]
[1734418502677,2.14647336,4004.4,4003.7,0.24636567]
[1734418502969,0.85858934,4004.3,4003.8,0.7962]
[1734418503126,2.11430669,4004.5,4003.8,0.7962]
[1734418503328,1.07679427,4004.5,4003.8,0.7962]
[1734418512035,1.07679427,4004.5,4004.0,3.0]
[1734418512238,1.07679427,4004.5,4003.8,0.7962]
[1734418512534,1.07679427,4004.5,4004.0,3.0]
[1734418512871,1.07679427,4004.5,4003.8,1.26257967]
[1734418512872,1.07679427,4004.5,4003.8,0.7962]
[1734418516086,1.07679427,4004.5,4003.6,0.39724501]
[1734418516087,1.07679427,4004.2,4003.6,0.39724501]
[1734418516232,1.07679427,4004.2,4003.5,0.7965]
[1734418516432,1.07679427,4004.2,4003.5,1.19374501]
[1734418516892,1.07679427,4004.2,4003.5,0.7965]
[1734418517302,1.29049427,4003.9,4003.3,1.17120292]
[1734418517431,1.29049427,4003.9,4003.3,0.12497722]
[1734418519242,1.29049427,4003.9,4003.5,3.0]
[1734418519443,1.29049427,4003.9,4003.1,0.7965]
[1734418519682,1.29049427,4003.9,4003.2,0.39724501]
[1734418519832,0.2137,4003.9,4003.2,0.39724501]
[1734418520058,1.29049427,4003.9,4003.2,0.39724501]
[1734418521182,0.2137,4003.9,4003.2,0.39724501]
[1734418521479,0.2137,4003.9,4003.2,0.63352556]
[1734418523782,1.07679427,4003.8,4003.2,0.39724501]
[1734418524787,0.2137,4003.9,4003.2,0.39724501]
[1734418527401,1.07679427,4004.0,4003.2,0.39724501]
[1734418528487,1.07679427,4004.0,4003.1,0.7965]
[1734418528668,0.2137,4003.9,4003.1,0.7965]
[1734418529060,1.07679427,4003.7,4003.1,0.7965]
[1734418532389,1.07679427,4003.7,4003.1,1.44998409]
[1734418532754,0.2137,4003.9,4003.1,4.8472291]
[1734418534474,0.2137,4003.9,4003.1,1.19374501]
[1734418535201,0.2137,4003.9,4003.2,0.39724501]
[1734418536063,0.2137,4003.9,4003.2,0.42165775]
[1734418536461,1.03905123,4004.3,4003.3,0.8125]
[1734418536656,1.07679427,4004.3,4003.4,0.39724501]
[1734418536999,1.07679427,4004.0,4003.1,1.04570959]
[1734418537205,1.07679427,4004.0,4003.1,0.39724501]
[1734418537770,0.90022203,4004.2,4003.1,0.39724501]
[1734418538084,1.07679427,4003.9,4003.1,0.39724501]
[1734418538479,0.2137,4003.8,4003.1,0.39724501]
[1734418542816,0.2137,4004.1,4003.1,0.39724501]
[1734418543013,5.09288181,4004.3,4003.2,0.8125]
[1734418543223,0.859318,4004.2,4003.2,0.8125]
[1734418543439,5.09288181,4004.3,4003.3,0.52554546]
[1734418543440,4.05383058,4004.3,4003.3,0.52554546]
[1734418543648,1.07679427,4004.1,4003.3,0.52554546]
[1734418545461,0.2137,4004.0,4003.2,0.8125]
[1734418547927,0.2137,4004.0,4003.2,1.85817157]
[1734418548343,1.07679427,4004.1,4003.2,5.25541658]
[1734418548550,1.07679427,4004.1,4003.2,2.25541658]
[1734418548918,1.07679427,4004.1,4003.2,2.25551071]
[1734418550032,1.07679427,4004.1,4003.3,3.0]
[1734418550256,1.0700427,4004.1,4003.2,2.93792352]
[1734418550437,1.0700427,4004.1,4003.2,3.06437004]
[1734418552080,1.0700427,4004.1,4003.3,3.0]
[1734418553266,1.0700427,4004.1,4003.3,4.0457657]
[1734418553467,1.0700427,4004.1,4003.3,4.80909356]
[1734418553932,1.0700427,4004.1,4003.3,3.76332786]
[1734418554284,1.0700427,4004.1,4003.3,4.80909356]
[1734418555042,1.07679427,4004.2,4003.3,5.20633857]
[1734418555227,1.07679427,4004.2,4003.4,0.83966065]
[1734418556644,0.85875088,4004.1,4003.4,0.83966065]
[1734418556866,1.07679427,4004.2,4003.2,1.8582657]
[1734418557023,0.85872057,4004.1,4003.2,1.8582657]
[1734418557224,2.11530585,4004.2,4003.2,1.8582657]
[1734418557427,0.85878807,4004.1,4003.2,1.8582657]
[1734418557747,2.11530585,4004.2,4003.2,1.8582657]
[1734418557908,0.85877948,4004.1,4003.2,1.8582657]
[1734418558262,1.07679427,4004.2,4003.3,1.0457657]
[1734418558546,0.85886252,4004.1,4003.3,3.0]
[1734418558762,2.11530585,4004.2,4003.3,4.0457657]
[1734418558985,1.07679427,4004.2,4003.3,4.0457657]
[1734418559275,1.07679427,4004.2,4003.3,4.78750079]
[1734418559442,0.85898262,4004.1,4003.3,4.78750079]
[1734418559637,1.07679427,4004.2,4003.3,4.78750079]
[1734418559840,1.07679427,4004.2,4003.4,1.0457657]
[1734418560235,0.85909211,4004.1,4003.4,1.0457657]
[1734418560475,1.07679427,4004.2,4003.5,0.71698002]
[1734418561319,1.07679427,4004.2,4003.5,4.76274572]
[1734418561827,1.07679427,4004.2,4003.5,1.76274572]
[1734418562025,1.03872041,4004.4,4003.6,3.7777]
[1734418562228,0.85919832,4004.3,4003.6,5.22071071]
[1734418562476,2.11551468,4004.5,4003.7,1.79651471]
[1734418562763,0.85929959,4004.4,4003.7,4.79651471]
[1734418562939,2.11551468,4004.5,4003.7,4.79651471]
[1734418563135,0.85929056,4004.4,4003.7,4.79651471]
[1734418563361,2.11595392,4004.5,4003.7,4.79651471]
[1734418563585,0.85928061,4004.4,4003.8,3.82582391]
[1734418563723,2.11595392,4004.5,4003.8,0.82582391]
[1734418563928,0.85927645,4004.4,4003.8,0.82582391]
[1734418564255,2.11595392,4004.5,4003.8,0.82582391]
[1734418564453,0.85925863,4004.4,4003.8,0.82582391]
[1734418564623,1.07679427,4004.5,4003.8,0.82582391]
[1734418565026,0.85926886,4004.4,4003.8,0.82582391]
[1734418565237,1.07679427,4004.5,4003.8,0.82582391]
[1734418565444,0.8592061,4004.4,4003.8,0.82582391]
[1734418565738,1.07679427,4004.5,4003.9,0.61694667]
[1734418565950,0.85922094,4004.4,4003.7,1.0457657]
[1734418566148,1.07679427,4004.5,4003.6,5.34364278]
[1734418566461,0.85920449,4004.4,4003.6,5.34364278]
[1734418566629,1.07679427,4004.5,4003.6,5.34364278]
[1734418566837,0.85922109,4004.4,4003.6,5.34364278]
[1734418567169,1.07679427,4004.5,4003.7,0.7630453]
[1734418569937,1.07679427,4004.5,4003.7,4.808811]
[1734418570283,1.07679427,4004.5,4003.8,4.0457657]
[1734418570973,1.07679427,4004.5,4003.8,1.0457657]
[1734418571136,1.07679427,4004.5,4003.7,4.808811]
[1734418571362,1.07679427,4004.5,4003.9,0.7777]
[1734418571537,1.07679427,4004.5,4003.9,3.7777]
[1734418572372,1.07679427,4004.5,4003.9,0.7777]
[1734418579602,4.05383058,4005.2,4004.1,0.8139]
[1734418579603,1.03915965,4005.0,4004.1,0.8139]
[1734418579803,2.32965392,4005.2,4004.2,0.39724501]
[1734418580007,0.85782218,4005.1,4004.2,0.39724501]
[1734418580175,1.07679427,4004.9,4004.2,0.39724501]
[1734418586822,1.07679427,4004.9,4004.3,0.8139]
[1734418590399,1.07679427,4004.9,4004.2,0.39724501]
[1734418590400,1.03698624,4005.5,4004.5,0.8139]
[1734418590618,3.11095423,4005.8,4004.7,0.8139]
[1734418590826,0.85774414,4005.7,4004.9,0.8139]
[1734418591010,3.11095423,4005.8,4005.1,0.8139]
[1734418591357,3.11095423,4005.8,4005.2,0.39724501]
[1734418591673,2.07396799,4005.8,4005.2,0.39724501]
[1734418591797,1.07679427,4006.0,4005.3,0.8139]
[1734418602123,1.07679427,4005.7,4005.3,0.8139]
[1734418603646,1.07679427,4006.0,4005.3,0.8139]
[1734418605854,1.07679427,4006.0,4005.4,0.39724501]
[1734418606057,1.07679427,4006.0,4005.5,0.7757]
[1734418606264,0.2137,4006.5,4005.5,0.7757]
[1734418606265,1.07679427,4006.3,4005.5,0.7757]
[1734418608161,1.07679427,4006.3,4005.5,3.7757]
[1734418608460,1.07679427,4006.3,4005.5,0.7757]
[1734418609519,1.07679427,4006.6,4005.6,0.7757]
[1734418609763,1.07679427,4006.6,4005.7,0.7757]
[1734418610319,1.07679427,4006.6,4005.7,1.17294501]
[1734418611949,1.07679427,4006.6,4005.7,4.17294501]
[1734418612151,1.07679427,4006.6,4005.7,1.17294501]
[1734418612363,1.07679427,4006.4,4005.7,1.17294501]
[1734418612535,1.07679427,4006.2,4005.7,0.7757]
[1734418614035,1.07679427,4006.5,4005.7,0.7757]
[1734418616977,1.07679427,4006.5,4005.8,0.24963]
[1734418617579,1.07679427,4006.5,4005.9,0.24963]
[1734418617880,1.07679427,4006.5,4006.0,0.7757]
[1734418618880,1.07679427,4006.5,4006.0,1.02532]
[1734418619779,1.07679427,4006.5,4006.2,0.24961]
[1734418619983,1.07679427,4006.5,4006.3,0.819]
[1734418620371,0.2137,4007.1,4006.3,1.0686]
[1734418620688,0.3804304,4007.4,4006.5,0.24959]
[1734418620883,1.07679427,4007.1,4006.4,0.24959]
[1734418622883,1.07679427,4006.9,4006.4,0.24959]
[1734418623440,0.3804304,4007.4,4006.8,0.24957]
[1734418623636,1.07679427,4007.3,4006.7,0.24958]
[1734418623954,1.07679427,4007.3,4006.8,0.819]
[1734418626355,1.07679427,4007.1,4006.8,0.819]
[1734418627761,0.1667304,4007.4,4006.8,0.819]
[1734418627961,0.1667304,4007.4,4007.1,0.24955]
[1734418628206,0.1667304,4007.4,4007.2,0.819]
[1734418628498,1.07679427,4007.3,4006.6,0.24958]
[1734418628715,0.1667304,4007.4,4006.6,0.24958]
[1734418628716,1.07679427,4007.1,4006.6,0.24958]
[1734418628997,1.07679427,4007.1,4006.5,0.819]
[1734418629512,1.07679427,4007.1,4006.5,1.06859]
[1734418630019,1.07679427,4007.1,4006.6,0.24958]
[1734418631392,1.07679427,4007.1,4006.5,0.819]
[1734418632998,0.1667304,4007.4,4006.6,1.13250551]
[1734418633313,0.1667304,4007.4,4007.0,0.24955]
[1734418633617,0.1667304,4007.4,4007.1,0.7606]
[1734418633810,0.1667304,4007.4,4007.1,1.01015]
[1734418636108,0.1667304,4007.4,4007.1,0.7606]
[1734418636317,1.07679427,4007.3,4006.7,0.7588]
[1734418636682,1.07679427,4007.0,4006.7,0.7588]
[1734418637011,0.1667304,4007.4,4006.2,0.7588]
[1734418637152,0.1667304,4007.4,4006.9,0.7588]
[1734418637514,0.1667304,4007.4,4007.2,0.24955]
[1734418637715,0.1667304,4007.4,4007.3,0.7588]
[1734418646037,0.1667304,4007.4,4007.3,3.7588]
[1734418647207,0.1667304,4007.4,4007.3,0.7588]
[1734418647770,0.1667304,4007.4,4007.0,1.00836]
[1734418649221,0.1667304,4007.4,4007.0,0.7588]
[1734418650238,0.1667304,4007.4,4007.1,0.24955]
[1734418651959,1.07679427,4007.2,4006.8,0.24957]
[1734418652186,1.07679427,4006.9,4006.4,1.79968294]
[1734418652454,0.2137,4007.2,4006.4,1.04088294]
[1734418652455,1.07679427,4006.6,4006.4,1.04088294]
[1734418652756,1.07679427,4006.6,4006.2,0.2496]
[1734418653164,1.07679427,4006.6,4005.9,0.37190551]
[1734418653350,1.29049427,4006.6,4005.9,0.62152551]
[1734418653557,1.29049427,4006.6,4005.9,0.75955806]
[1734418654826,1.29049427,4006.6,4006.3,3.0]
[1734418655032,1.29049427,4006.6,4005.9,0.62152551]
[1734418656167,1.07679427,4006.3,4005.8,0.7588]
[1734418656539,1.07679427,4006.8,4005.5,0.37190551]
[1734418656540,1.29049427,4006.0,4005.5,1.00845]
[1734418656739,1.07679427,4005.7,4005.5,0.24965]
[1734418657325,1.29049427,4006.0,4005.5,0.24965]
[1734418657936,0.2137,4006.0,4005.5,0.24965]
[1734418658154,0.2137,4006.0,4005.2,0.7588]
[1734418658329,2.33120114,4005.9,4004.9,0.7588]
[1734418658787,0.46819011,4006.0,4004.8,1.04270351]
[1734418658788,0.2137,4005.4,4004.8,1.04270351]
[1734418662967,0.2137,4005.4,4004.7,0.2497]
[1734418665483,0.2137,4005.4,4004.6,0.7588]
[1734418666917,0.2137,4005.7,4004.6,0.7588]
[1734418667612,0.2137,4005.7,4004.6,1.44711939]
[1734418673399,0.2137,4005.7,4004.6,0.7588]
[1734418677416,0.2137,4005.7,4004.9,3.0]
[1734418677814,0.2137,4005.7,4004.6,0.7588]
[1734418678394,0.2137,4005.7,4004.9,3.0]
[1734418679065,0.2137,4005.7,4004.6,0.7588]
[1734418679844,0.89902218,4005.7,4004.6,0.7588]
[1734418680166,1.07629386,4005.3,4004.6,0.7588]
[1734418680496,0.2137,4005.2,4004.6,0.7588]
[1734418682018,0.2137,4004.6,4003.4,0.8288]
[1734418682193,0.2137,4004.6,4003.6,0.8288]
[1734418682393,0.2137,4004.6,4003.7,0.34857217]
[1734418685291,0.2137,4004.6,4003.9,0.12160995]
[1734418685924,0.2137,4004.6,4004.4,3.0]
[1734418686093,0.2137,4004.6,4003.6,0.8288]
[1734418686293,0.2137,4004.6,4003.7,0.15152444]
[1734418686892,0.2137,4004.6,4004.4,3.0]
[1734418687124,0.2137,4004.6,4003.7,0.15152444]
[1734418687338,0.2137,4004.6,4004.4,3.0]
[1734418688436,0.2137,4004.6,4003.7,0.15152444]
[1734418688641,0.2137,4004.6,4004.4,3.0]
[1734418689363,0.2137,4004.9,4004.4,3.0]
[1734418689522,0.2137,4004.9,4003.9,1.17737217]
[1734418694123,0.2137,4004.9,4003.9,4.17737217]
[1734418694327,0.2137,4004.9,4004.0,0.45551243]
[1734418694564,0.2137,4004.9,4003.9,1.17737217]
[1734418695272,0.2137,4004.9,4004.0,3.0]
[1734418695838,0.2137,4004.9,4003.9,1.17737217]
[1734418698573,0.2137,4004.9,4003.9,5.21608848]
[1734418698772,4.05383058,4005.5,4004.0,1.85341631]
[1734418698773,1.28999386,4005.4,4004.0,1.85341631]
[1734418698980,1.28999386,4005.4,4004.1,4.74049]
[1734418699274,1.28999386,4005.4,4004.2,3.8147]
[1734418699849,1.28999386,4005.4,4004.3,1.04390012]
[1734418700461,1.28999386,4005.4,4004.5,1.0442903]
[1734418700790,0.2137,4005.4,4004.6,1.8589903]
[1734418700928,0.2137,4005.4,4004.7,1.53018933]
[1734418701634,0.2137,4005.4,4004.8,1.04468429]
[1734418702784,0.2137,4005.4,4004.9,1.04468429]
[1734418702935,0.2137,4005.4,4005.0,1.04468429]
[1734418703502,0.2137,4005.6,4005.0,1.04468429]
[1734418703663,0.2137,4005.6,4005.1,1.60578779]
[1734418704048,0.2137,4005.6,4005.1,0.5611035]
[1734418706097,0.2137,4005.6,4005.1,1.60578779]
[1734418706650,0.2137,4005.6,4005.1,0.5611035]
[1734418711955,5.09288168,4006.5,4004.9,4.04468429]
[1734418711956,1.07629386,4005.4,4004.9,4.04468429]
[1734418712155,5.09288168,4006.5,4004.4,5.22236721]
[1734418712156,1.28999386,4005.0,4004.4,3.65524749]
[1734418712402,1.07629386,4005.6,4004.4,2.6105632]
[1734418712403,1.07629386,4004.7,4004.4,2.6105632]
[1734418713805,1.07629386,4004.7,4004.1,1.04458872]
[1734418713990,1.07629386,4004.7,4004.1,2.03284945]
[1734418716314,1.07629386,4004.7,4004.1,0.98826073]
[1734418717315,1.07629386,4004.7,4004.1,2.03283585]
[1734418717766,1.07629386,4004.7,4004.1,0.98826073]
[1734418717965,1.07629386,4004.7,4004.1,2.03283585]
[1734418718207,1.07629386,4004.7,4004.2,0.12408454]
[1734418718990,1.07629386,4004.7,4004.1,2.03283585]
[1734418719207,1.07629386,4004.7,4004.1,1.04457512]
[1734418719530,1.07629386,4004.7,4003.9,1.04457512]
[1734418719531,0.2137,4004.6,4003.9,1.04457512]
[1734418719746,0.2137,4004.6,4003.9,2.01553719]
[1734418720865,0.2137,4004.6,4003.9,2.14317627]
[1734418721308,0.2137,4004.6,4003.9,2.14310872]
[1734418721537,0.2137,4004.6,4004.0,0.34857217]
[1734418721885,0.2137,4004.6,4004.0,1.39304092]
[1734418722087,0.2137,4004.6,4004.1,0.86252016]
[1734418722600,0.2137,4005.0,4004.1,5.69458891]
[1734418722961,0.2137,4005.0,4004.2,4.04446875]
[1734418723163,0.2137,4005.0,4004.2,3.0]
[1734418724181,0.2137,4005.0,4004.2,4.04446875]
[1734418724418,0.2137,4005.0,4004.2,3.0]
[1734418727867,0.2137,4005.0,4004.1,1.90698891]
[1734418728503,0.2137,4005.0,4004.1,1.9070431]
[1734418728708,0.2137,4005.0,4004.1,0.86252016]
[1734418729028,0.2137,4004.7,4004.1,0.86252016]
[1734418730546,0.2137,4004.7,4004.2,0.58378822]
[1734418730751,0.2137,4004.7,4004.0,4.04452294]
[1734418730752,0.2137,4004.7,4004.0,1.04452294]
[1734418733294,0.2137,4004.7,4004.1,1.04452294]
[1734418734122,0.2137,4004.7,4004.0,1.04452294]
[1734418734437,0.2137,4004.7,4003.9,4.56682339]
[1734418734438,0.2137,4004.7,4003.9,1.04452294]
[1734418735000,0.2137,4004.7,4004.0,1.04452294]
[1734418735200,0.2137,4004.7,4004.0,4.90568013]
[1734418735501,0.2137,4004.7,4004.0,3.86115719]
[1734418735733,0.2137,4004.7,4004.0,0.86115719]
[1734418736155,1.07629386,4004.5,4004.0,1.04452294]
[1734418736298,0.2137,4004.4,4003.9,4.04452294]
[1734418736654,0.2137,4004.4,4003.9,1.04452294]
[1734418737117,0.2137,4004.4,4003.8,4.04469528]
[1734418737299,0.2137,4004.4,4003.9,4.98618577]
[1734418737523,0.2137,4004.4,4003.9,1.98618577]
[1734418737950,0.2137,4004.7,4004.0,4.04469528]
[1734418738120,0.2137,4004.7,4004.1,1.04469528]
[1734418739059,0.2137,4004.7,4004.0,4.04469528]
[1734418739364,0.2137,4004.7,4004.1,0.65531954]
[1734418739665,0.2137,4004.7,4004.1,1.70001482]
[1734418740567,0.2137,4004.7,4004.1,0.65531954]
[1734418741037,0.2137,4004.7,4004.1,1.70001482]
[1734418743051,0.2137,4004.7,4004.1,0.65531954]
[1734418743683,0.2137,4004.7,4004.1,0.7811053]
[1734418744856,0.2137,4004.7,4004.1,0.12578576]
[1734418755363,0.2137,4004.7,4004.1,1.17043614]
[1734418756587,0.2137,4004.7,4004.1,4.17043614]
[1734418756998,0.2137,4004.7,4004.1,1.17043614]
[1734418757497,0.2137,4004.7,4004.2,1.04465038]
[1734418760127,0.2137,4004.7,4004.2,4.04465038]
[1734418760331,0.2137,4004.7,4004.3,1.04465038]
[1734418761699,0.2137,4004.7,4004.4,1.04465038]
[1734418765456,0.2137,4004.7,4004.3,1.04465038]
[1734418767044,0.2137,4004.7,4004.4,1.04465038]
[1734418769765,0.2137,4004.7,4004.3,1.04465038]
[1734418770811,0.2137,4004.7,4004.2,1.04465038]
[1734418774037,0.2137,4004.7,4004.0,4.57042405]
[1734418774038,0.2137,4004.7,4004.3,1.04465038]
[1734418774548,0.2137,4004.7,4004.3,1.04695205]
[1734418777354,1.5596891,4005.2,4004.5,1.04695205]
[1734418777552,1.5596891,4005.2,4004.6,4.17227217]
[1734418777723,1.5596891,4005.2,4004.6,5.74204023]
[1734418777923,1.5596891,4005.2,4004.8,1.04657397]
[1734418778254,1.5596891,4005.2,4004.7,1.04657397]
[1734418778443,1.5596891,4005.2,4004.8,1.72543539]
[1734418778967,1.5596891,4005.2,4004.8,0.67886142]
[1734418779679,1.07629386,4005.1,4004.8,0.67886142]
[1734418779851,1.07629386,4005.1,4004.7,1.04657397]
[1734418782570,1.07629386,4005.1,4004.6,3.8237]
[1734418782571,1.07629386,4005.1,4004.6,4.87027397]
[1734418782882,1.07629386,4005.1,4004.6,1.04657397]
[1734418785287,1.07629386,4005.1,4004.7,1.04657397]
[1734418785675,1.07629386,4005.1,4004.6,1.04657397]
[1734418785871,1.07629386,4005.1,4004.6,1.97708958]
[1734418787460,1.07629386,4005.1,4004.7,1.04657397]
[1734418787787,0.2137,4005.3,4004.7,1.04657397]
[1734418789890,1.07629386,4005.4,4004.8,0.8108]
[1734418790089,0.2137,4005.6,4004.9,1.04657397]
[1734418790297,0.2137,4005.6,4005.0,0.97757142]
[1734418793351,0.2137,4005.6,4004.8,1.85737397]
[1734418793548,0.2137,4005.6,4004.9,1.04657397]
[1734418793816,0.2137,4005.6,4004.8,1.85737397]
[1734418796802,1.03942097,4006.2,4004.8,1.85737397]
[1734418796803,0.2137,4006.2,4004.9,1.04657397]
[1734418797004,1.07629386,4005.8,4004.9,1.04657397]
[1734418797296,1.07629386,4005.8,4005.0,2.02389824]
[1734418797496,0.2137,4005.7,4005.0,2.02389824]
[1734418797729,0.2137,4005.7,4005.0,0.97732427]
[1734418798275,0.2137,4005.7,4005.0,2.02389824]
[1734418799167,0.2137,4005.7,4005.0,0.97732427]
[1734418799395,0.2137,4005.7,4005.0,2.02389824]
[1734418799598,0.2137,4005.7,4005.0,0.97732427]
[1734418800769,0.2137,4005.7,4005.0,2.02389824]
[1734418800961,0.2137,4005.7,4005.1,3.74019948]
[1734418801283,0.2137,4005.7,4005.1,0.74019948]
[1734418802481,1.07629386,4005.5,4004.9,1.04418825]
[1734418802730,0.2137,4005.1,4004.6,1.04418825]
[1734418802897,1.07629386,4004.8,4004.4,1.04432652]
[1734418803225,1.28999386,4005.1,4004.4,1.04432652]
[1734418804813,1.28999386,4005.1,4004.5,1.04432652]
[1734418805212,0.2137,4005.1,4004.5,0.56107238]
[1734418805753,0.2137,4005.6,4004.6,1.85447001]
[1734418805913,0.2137,4005.6,4004.7,1.04432652]
[1734418806114,0.2137,4005.6,4004.9,0.7658]
[1734418806439,0.2137,4005.9,4005.0,0.24977194]
[1734418806610,0.2137,4005.9,4005.0,0.27473619]
[1734418807041,0.2137,4005.9,4005.0,0.62330836]
[1734418807549,0.2137,4005.9,4005.0,0.59834411]
[1734418810152,0.2137,4005.9,4005.0,4.64238885]
[1734418810324,0.2137,4005.9,4005.1,0.7313506]
[1734418810527,0.2137,4005.9,4005.1,1.77539534]
[1734418810745,0.2137,4005.9,4005.2,1.04404474]
[1734418811057,0.2137,4005.9,4005.3,1.04404474]
[1734418812455,0.2137,4005.9,4005.2,1.04404474]
[1734418812761,0.2137,4005.9,4005.3,0.69400358]
[1734418813134,0.2137,4006.4,4005.4,0.7658]
[1734418813317,0.2137,4006.4,4005.4,3.7658]
[1734418814265,0.2137,4006.4,4005.5,1.04349544]
[1734418814438,0.2137,4006.4,4005.6,0.74181676]
[1734418815987,1.28999386,4007.0,4005.8,0.7658]
[1734418816529,0.2137,4007.0,4005.8,0.7658]
[1734418816731,1.28999386,4007.0,4005.8,0.7658]
[1734418816966,1.28999386,4007.0,4005.9,0.55511122]
[1734418819636,1.07629386,4006.7,4005.9,0.55511122]
[1734418819834,0.2137,4006.6,4005.9,0.55511122]
[1734418824188,1.28999386,4006.6,4005.9,0.55511122]
[1734418824808,0.2137,4007.3,4005.9,0.55511122]
[1734418825104,0.2137,4006.8,4006.0,0.13209112]
[1734418831980,0.2137,4006.8,4006.5,3.0]
[1734418832313,0.2137,4006.8,4006.0,0.13209112]
[1734418834321,0.2137,4007.1,4006.1,0.8187]
[1734418835549,0.3804304,4007.4,4006.3,0.8187]
[1734418835755,0.3804304,4007.4,4006.5,1.86114965]
[1734418835756,0.1667304,4007.4,4006.5,1.86114965]
[1734418835900,0.1667304,4007.4,4006.6,1.86114965]
[1734418836104,0.1667304,4007.4,4006.7,0.02075977]
[1734418836344,0.1667304,4007.4,4006.8,0.22304816]
[1734418836654,4e-07,4007.4,4006.9,0.8187]
[1734418836845,4e-07,4007.4,4006.9,0.84244914]
[1734418838251,4e-07,4007.4,4007.1,3.8187]
[1734418838406,4e-07,4007.4,4007.2,0.85716846]
[1734418840763,4e-07,4007.4,4007.1,0.8187]
[1734418840923,4e-07,4007.4,4007.3,0.8187]
[1734418841108,4e-07,4007.4,4007.3,1.16727217]
[1734418841303,4e-07,4007.4,4007.3,0.8187]
[1734418842008,4e-07,4007.4,4006.9,3.94393811]
[1734418842208,4e-07,4007.4,4007.0,0.88505356]
[1734418842442,4e-07,4007.4,4006.9,0.94393811]
[1734418843158,4e-07,4007.4,4007.3,0.12370454]
[1734418844252,4e-07,4007.4,4007.3,0.14865053]
[1734418844619,4e-07,4007.4,4007.3,0.12370454]
[1734418845021,4e-07,4007.4,4007.3,3.12370454]
[1734418845252,4e-07,4007.4,4007.3,0.43857002]
[1734418845454,4e-07,4007.4,4006.8,0.22304816]
[1734418845754,0.2137,4007.3,4007.0,3.0]
[1734418846446,0.2137,4007.3,4006.8,0.22304816]
[1734418846654,0.2137,4007.3,4006.6,0.126584]
[1734418853095,0.2137,4007.3,4006.6,0.47515617]
[1734418857462,0.2137,4007.3,4006.6,0.126584]
[1734418860770,0.2137,4007.3,4006.3,1.04230588]
[1734418860967,4e-07,4007.4,4006.3,1.04230588]
[1734418860968,2.32916973,4007.2,4006.3,1.04230588]
[1734418861334,2.32916973,4007.2,4005.6,2.89508136]
[1734418861335,0.2137,4007.0,4005.6,1.04279743]
[1734418861467,0.2137,4007.0,4005.4,2.60656306]
[1734418861789,0.2137,4007.0,4005.4,1.56376563]
[1734418861998,0.2137,4007.0,4006.0,0.1257247]
[1734418862186,2.32916973,4006.8,4005.4,1.56376563]
[1734418862386,0.2137,4006.6,4005.4,1.56376563]
[1734418862595,0.2137,4006.6,4005.3,1.04279743]
[1734418863434,0.2137,4006.6,4005.2,4.04279743]
[1734418863588,0.2137,4006.6,4005.2,1.04279743]
[1734418863797,0.2137,4006.6,4005.1,4.04279743]
[1734418864023,0.2137,4006.4,4005.2,0.59555595]
[1734418864394,0.2137,4006.4,4005.1,1.04279743]
[1734418864714,0.2137,4006.4,4005.4,0.12672158]
[1734418864916,0.2137,4006.2,4005.1,1.04279743]
[1734418865325,0.2137,4005.9,4005.1,1.04279743]
[1734418865694,0.2137,4005.9,4004.6,2.08348136]
[1734418865910,0.2137,4005.9,4004.6,2.40865483]
[1734418866202,0.2137,4005.9,4004.6,0.32517347]
[1734418866407,0.2137,4005.9,4004.3,0.12583943]
[1734418866639,0.2137,4005.9,4004.3,0.34857217]
[1734418866841,0.2137,4005.7,4004.7,0.12439081]
[1734418867052,0.2137,4005.7,4004.3,0.34857217]
[1734418867547,0.2137,4005.7,4004.6,0.12324413]
[1734418867847,0.2137,4005.4,4004.3,0.34857217]
[1734418868054,0.2137,4005.4,4004.0,0.33902072]
[1734418868608,0.2137,4005.4,4003.9,2.43340509]
[1734418869618,0.2137,4005.1,4004.1,0.12486624]
[1734418869950,0.2137,4004.9,4004.1,0.12486624]
[1734418876761,0.2137,4004.9,4004.4,3.0]
[1734418876909,0.2137,4004.9,4004.2,0.34857217]
[1734418877110,0.2137,4004.9,4003.9,0.8037]